fUST/lending_fUST_20260218
["ID","MTS","AMOUNT","RATE_DAILY","PERIOD"]
[405871573,1771375846540,-500.0,0.00016438,2]
[405871575,1771375846551,-503.58503756,0.00016438,2]
[405871577,1771375846560,-1644.84,0.00016438,2]
[405871579,1771375846568,-500.0,0.00016438,2]
[405871581,1771375846577,-500.0,0.00016438,2]
[405871583,1771375846587,-500.0,0.00016438,2]
[405871585,1771375846596,-500.0,0.00016438,2]
[405871587,1771375846605,-500.0,0.00016438,2]
[405871589,1771375846614,-500.0,0.00016438,2]
[405871591,1771375846624,-500.0,0.00016438,2]
[405871593,1771375846633,-2253.56566676,0.00016438,2]
[405871598,1771375846669,-648.38251828,0.00016438,2]
[405872381,1771376481371,-282.34561524,0.00012125,2]
[405872382,1771376481397,-854.48555799,0.00012247,2]
[405872383,1771376481431,-1808.28278829,0.00012247,2]
[405872384,1771376510633,-543.83117323,0.00012247,2]
[405872385,1771376510655,-49.16882677,0.00012247,2]
[405872396,1771376540462,-543.83117323,0.00012245,2]
[405872403,1771376759127,-3856.22897054,0.00012123,2]
[405872404,1771376836073,-210.547871,0.00012123,2]
[405872406,1771376895088,274.8536504,0.00010583,2]
[405872407,1771376901730,5000.0,0.00012,2]
[405872408,1771376923981,678.44188123,0.00012,2]
[405872409,1771376946258,-150.0,0.00012215,2]
[405872410,1771376946278,-837.33431862,0.00012366,2]
[405872411,1771376954084,-362.66568138,0.00012366,2]
[405872412,1771376954105,-300.0,0.00012366,2]
[405872413,1771376954127,-500.0,0.00012366,2]
[405872414,1771376954148,-500.0,0.00012366,2]
[405872415,1771376954170,-500.0,0.00012366,2]
[405872416,1771376954190,-300.0,0.00012367,2]
[405872417,1771376954209,-300.0,0.00012367,2]
[405872418,1771376954228,-300.0,0.00012367,2]
[405872465,1771377032447,-300.0,0.00013272,2]
[405872466,1771377032456,-134.44183182,0.00013272,2]
[405872481,1771377038541,-124.55816818,0.00013272,2]
[405872483,1771377038551,-300.0,0.00013272,2]
[405872485,1771377038560,-264.0,0.00013272,2]
[405872487,1771377038570,-1200.0,0.00013272,2]
[405872489,1771377038580,-550.66481362,0.00013273,2]
[405872491,1771377038589,-500.0,0.00013273,2]
[405872493,1771377038598,-500.0,0.00013273,2]
[405872494,1771377038608,-500.0,0.00013273,2]
[405872496,1771377038618,-500.0,0.00013273,2]
[405872498,1771377038627,-500.0,0.00013273,2]
[405872501,1771377038637,-500.0,0.00013273,2]
[405872502,1771377038646,-500.0,0.00013273,2]
[405872504,1771377038655,-487.42660134,0.00013273,2]
[405872506,1771377038665,-500.0,0.00013273,2]
[405872509,1771377038674,-500.0,0.00013273,2]
[405872510,1771377038684,-404.50815283,0.00013273,2]
[405872514,1771377038693,-500.0,0.00013273,2]
[405872517,1771377038702,-500.0,0.00013273,2]
[405872519,1771377038711,-500.0,0.00013273,2]
[405872521,1771377038720,-500.0,0.00013699,2]
[405872522,1771377038729,-500.0,0.00013699,2]
[405872524,1771377038738,-500.0,0.00013699,2]
[405872527,1771377038748,-500.0,0.00013699,2]
[405872529,1771377038758,-500.0,0.00013699,2]
[405872530,1771377038766,-500.0,0.00013699,2]
[405872532,1771377038776,-500.0,0.00013699,2]
[405872534,1771377038785,-500.0,0.00013699,2]
[405872536,1771377038794,-500.0,0.00013699,2]
[405872539,1771377038803,-161.16218922,0.00013699,2]
[405872540,1771377038812,-500.0,0.00013699,2]
[405872543,1771377038822,-500.0,0.00013699,2]
[405872545,1771377038835,-300.27889994,0.00013699,2]
[405872547,1771377038844,-500.0,0.00013699,2]
[405872549,1771377038853,-500.0,0.00013699,2]
[405872550,1771377038861,-2238.56552598,0.00013721,2]
[405872553,1771377038871,-409.63130904,0.00013821,2]
[405872554,1771377038881,-1000.0,0.00013821,2]
[405872557,1771377038891,-1002.32463045,0.00013821,2]
[405872559,1771377038901,-1000.0,0.00013821,2]
[405872561,1771377038912,-1000.0,0.00013821,2]
[405872563,1771377038921,-879.88429686,0.00013821,2]
[405872564,1771377038930,-1000.0,0.00013821,2]
[405872566,1771377038940,-1000.0,0.00013821,2]
[405872568,1771377038949,-1000.0,0.00013821,2]
[405872570,1771377038958,-903.004331,0.00013877,2]
[405872572,1771377038967,-177.0,0.00014215,2]
[405872574,1771377038976,-500.0,0.00014247,2]
[405872589,1771377039104,-702.83775976,0.00014247,2]
[405872591,1771377039115,-697.90396094,0.00014247,2]
[405872593,1771377039125,-1000.0,0.00014247,2]
[405872595,1771377039134,-413.21960917,0.00014247,2]
[405872597,1771377039143,-1000.0,0.00014247,2]
[405872599,1771377039152,-1027.96138248,0.00014247,2]
[405872601,1771377039161,-1000.0,0.00014247,2]
[405872603,1771377039170,-378.83454149,0.00014247,2]
[405872606,1771377039182,-189.32994239,0.00014247,2]
[405872607,1771377039192,-1000.0,0.00014247,2]
[405872609,1771377039201,-204.09881336,0.00014247,2]
[405872611,1771377039210,-500.51974168,0.00014247,2]
[405872613,1771377039219,-1500.0,0.00014368,2]
[405872615,1771377039228,-1500.0,0.00014368,2]
[405872617,1771377039238,-946.75001853,0.00014368,2]
[405872619,1771377039246,-678.97877802,0.00014368,2]
[405872621,1771377039256,-1500.0,0.00014368,2]
[405872623,1771377039265,-1500.0,0.00014368,2]
[405872625,1771377039274,-226.0,0.00014551,2]
[405872627,1771377039283,-300.0,0.00014551,2]
[405872629,1771377039293,-1557.0,0.00014599,2]
[405872632,1771377039304,-1015.13337887,0.00014795,2]
[405872634,1771377039313,-616.19990478,0.00014795,2]
[405872636,1771377039323,-1500.0,0.00014795,2]
[405872638,1771377039332,-214.61377282,0.00014795,2]
[405872639,1771377039342,-503.85478624,0.00014916,2]
[405872641,1771377039351,-2000.0,0.00014916,2]
[405872643,1771377039360,-764.83849209,0.00014916,2]
[405872645,1771377039369,-1029.53294995,0.00014916,2]
[405872647,1771377039379,-151.0,0.00014921,2]
[405872649,1771377039388,-151.0,0.00014921,2]
[405872651,1771377039397,-250.0,0.00014921,2]
[405872653,1771377039406,-250.0,0.00014921,2]
[405872655,1771377039416,-250.0,0.00014921,2]
[405872657,1771377039425,-250.0,0.00014921,2]
[405872659,1771377039434,-168.3888056,0.00014921,2]
[405872661,1771377039443,-187.3104873,0.00014921,2]
[405872663,1771377039453,-250.0,0.00014921,2]
[405872665,1771377039462,-250.0,0.00014921,2]
[405872667,1771377039472,-250.0,0.00014921,2]
[405872669,1771377039481,-250.0,0.00014921,2]
[405872671,1771377039490,-250.0,0.00014921,2]
[405872673,1771377039499,-250.0,0.00014921,2]
[405872675,1771377039508,-500.0,0.00014921,2]
[405872677,1771377039517,-250.0,0.00014921,2]
[405872679,1771377039526,-250.0,0.00014921,2]
[405872681,1771377039536,-500.0,0.00014921,2]
[405872683,1771377039545,-250.0,0.00014921,2]
[405872685,1771377039554,-250.0,0.00014921,2]
[405872687,1771377039564,-250.0,0.00014921,2]
[405872689,1771377039573,-250.0,0.00014921,2]
[405872691,1771377039582,-1928.87788114,0.00015089,7]
[405872693,1771377039591,-2000.0,0.00015342,2]
[405872695,1771377039600,-1938.35979411,0.00015464,2]
[405872697,1771377039609,-168.43004758,0.000156,2]
[405872699,1771377039619,-2500.0,0.0001589,2]
[405872701,1771377039627,-204.0,0.00016215,2]
[405872703,1771377039637,-3203.9169413,0.00016349,2]
[405872705,1771377039646,-500.0,0.00016438,2]
[405872707,1771377039655,-500.0,0.00016438,2]
[405872709,1771377039664,-500.0,0.00016438,2]
[405872711,1771377039674,-500.0,0.00016438,2]
[405872713,1771377039683,-500.0,0.00016438,2]
[405872715,1771377039691,-500.0,0.00016438,2]
[405872717,1771377039701,-500.0,0.00016438,2]
[405872719,1771377039710,-666.52232592,0.00016438,2]
[405872721,1771377039719,-1199.74018666,0.00016438,2]
[405872723,1771377039728,-2132.87144296,0.00016438,2]
[405872725,1771377039736,-500.0,0.00016438,2]
[405872727,1771377039745,-500.0,0.00016438,2]
[405872729,1771377039754,-500.0,0.00016438,2]
[405872731,1771377039763,-500.0,0.00016438,2]
[405872733,1771377039772,-500.0,0.00016438,2]
[405872735,1771377039781,-500.0,0.00016438,2]
[405872737,1771377039790,-171.80762089,0.00016438,2]
[405872739,1771377039799,-500.0,0.00016438,2]
[405872741,1771377039808,-500.0,0.00016438,2]
[405872743,1771377039817,-500.0,0.00016438,2]
[405872745,1771377039830,-500.0,0.00016438,2]
[405872747,1771377039839,-500.0,0.00016438,2]
[405872749,1771377039848,-500.0,0.00016438,2]
[405872751,1771377039857,-500.0,0.00016438,2]
[405872753,1771377039867,-1022.17,0.00016438,2]
[405872754,1771377039881,-3329.27901799,0.00016438,2]
[405872756,1771377039890,-500.0,0.00016438,2]
[405872758,1771377039901,-206.70457575,0.00016438,2]
[405872760,1771377039910,-500.0,0.00016438,2]
[405872763,1771377039919,-500.0,0.00016438,2]
[405872764,1771377039929,-500.0,0.00016438,2]
[405872767,1771377039938,-500.0,0.00016438,2]
[405872769,1771377039948,-500.0,0.00016438,2]
[405872771,1771377039958,-1260.24,0.00016438,2]
[405872773,1771377039967,-1553.12,0.00016438,2]
[405872775,1771377039976,-500.0,0.00016438,2]
[405872777,1771377039985,-500.0,0.00016438,2]
[405872779,1771377039995,-500.0,0.00016438,2]
[405872781,1771377040004,-500.0,0.00016438,2]
[405872783,1771377040013,-500.0,0.00016438,2]
[405872785,1771377040022,-500.0,0.00016438,2]
[405872787,1771377040032,-3049.46,0.00016438,2]
[405872789,1771377040041,-500.0,0.00016438,2]
[405872790,1771377040050,-500.0,0.00016438,2]
[405872793,1771377040059,-500.0,0.00016438,2]
[405872795,1771377040068,-500.0,0.00016438,2]
[405872796,1771377040077,-500.0,0.00016438,2]
[405872799,1771377040087,-500.0,0.00016438,2]
[405872801,1771377040096,-824.05,0.00016438,2]
[405872803,1771377040105,-274.00003833,0.00016438,2]
[405872804,1771377040115,-1576.31,0.00016438,2]
[405872806,1771377040124,-500.0,0.00016438,2]
[405872809,1771377040134,-500.0,0.00016438,2]
[405872810,1771377040143,-500.0,0.00016438,2]
[405872812,1771377040152,-500.0,0.00016438,2]
[405872814,1771377040161,-500.0,0.00016438,2]
[405872816,1771377040170,-500.0,0.00016438,2]
[405872818,1771377040179,-500.0,0.00016438,2]
[405872820,1771377040188,-500.0,0.00016438,2]
[405872822,1771377040197,-6601.25,0.00016438,2]
[405872824,1771377040206,-739.70521578,0.00016438,2]
[405872826,1771377040215,-500.0,0.00016712,2]
[405872828,1771377040224,-500.0,0.00016712,2]
[405872830,1771377040234,-500.0,0.00016712,2]
[405872832,1771377040242,-500.0,0.00016712,2]
[405872834,1771377040252,-500.0,0.00016712,2]
[405872836,1771377040261,-500.0,0.00016712,2]
[405872838,1771377040270,-267.528704,0.00016712,2]
[405872841,1771377040279,-500.0,0.00016712,2]
[405872843,1771377040288,-500.0,0.00016712,2]
[405872845,1771377040297,-500.0,0.00016712,2]
[405872847,1771377040306,-500.0,0.00016712,2]
[405872849,1771377040316,-500.0,0.00016712,2]
[405872851,1771377040325,-500.0,0.00016712,2]
[405872853,1771377040334,-500.0,0.00016712,2]
[405872855,1771377040343,-500.0,0.00016712,2]
[405872857,1771377040353,-500.0,0.00016712,2]
[405872860,1771377040370,-500.0,0.00016712,2]
[405872863,1771377040384,-500.0,0.00016712,2]
[405872865,1771377040393,-500.0,0.00016712,2]
[405872867,1771377040403,-500.0,0.00016712,2]
[405872869,1771377040413,-1022.17,0.00016712,2]
[405872871,1771377040422,-500.0,0.00016712,2]
[405872873,1771377040432,-500.0,0.00016712,2]
[405872875,1771377040441,-500.0,0.00016712,2]
[405872877,1771377040451,-168.32000032,0.00016712,2]
[405872879,1771377040461,-500.0,0.00016712,2]
[405872881,1771377040470,-500.0,0.00016712,2]
[405872883,1771377040480,-1260.24,0.00016712,2]
[405872885,1771377040490,-1553.12,0.00016712,2]
[405872887,1771377040499,-500.0,0.00016712,2]
[405872889,1771377040509,-500.0,0.00016712,2]
[405872891,1771377040518,-500.0,0.00016712,2]
[405872893,1771377040528,-500.0,0.00016712,2]
[405872896,1771377040538,-500.0,0.00016712,2]
[405872897,1771377040548,-500.0,0.00016712,2]
[405872900,1771377040558,-3049.46,0.00016712,2]
[405872902,1771377040567,-500.0,0.00016712,2]
[405872904,1771377040577,-500.0,0.00016712,2]
[405872906,1771377040587,-500.0,0.00016712,2]
[405872908,1771377040596,-500.0,0.00016712,2]
[405872910,1771377040605,-500.0,0.00016712,2]
[405872912,1771377040615,-500.0,0.00016712,2]
[405872914,1771377040624,-824.05,0.00016712,2]
[405872916,1771377040633,-1576.31,0.00016712,2]
[405872918,1771377040642,-500.0,0.00016712,2]
[405872920,1771377040651,-500.0,0.00016712,2]
[405872922,1771377040661,-500.0,0.00016712,2]
[405872924,1771377040670,-500.0,0.00016712,2]
[405872926,1771377040679,-500.0,0.00016712,2]
[405872928,1771377040688,-500.0,0.00016712,2]
[405872930,1771377040697,-500.0,0.00016712,2]
[405872932,1771377040707,-6601.25,0.00016712,2]
[405872934,1771377040716,-600.0,0.00016766,2]
[405872936,1771377040725,-500.0,0.00016986,2]
[405872938,1771377040734,-500.0,0.00016986,2]
[405872940,1771377040744,-500.0,0.00016986,2]
[405872942,1771377040753,-500.0,0.00016986,2]
[405872944,1771377040763,-500.0,0.00016986,2]
[405872946,1771377040771,-500.0,0.00016986,2]
[405872948,1771377040781,-500.0,0.00016986,2]
[405872950,1771377040790,-500.0,0.00016986,2]
[405872952,1771377040799,-500.0,0.00016986,2]
[405872954,1771377040808,-357.82322778,0.00016986,2]
[405872956,1771377040818,-500.0,0.00016986,2]
[405872958,1771377040832,-500.0,0.00016986,2]
[405872960,1771377040842,-257.96329464,0.00016986,2]
[405872962,1771377040851,-500.0,0.00016986,2]
[405872964,1771377040861,-500.0,0.00016986,2]
[405872966,1771377040871,-500.0,0.00016986,2]
[405872968,1771377040880,-500.0,0.00016986,2]
[405872970,1771377040889,-500.0,0.00016986,2]
[405872972,1771377040899,-1022.17,0.00016986,2]
[405872974,1771377040909,-500.0,0.00016986,2]
[405872976,1771377040918,-339.48,0.00016986,2]
[405872978,1771377040927,-291.17961862,0.00016986,2]
[405872980,1771377040937,-500.0,0.00016986,2]
[405872981,1771377040946,-500.0,0.00016986,2]
[405872982,1771377040955,-1260.24,0.00016986,2]
[405872983,1771377040964,-1553.12,0.00016986,2]
[405872984,1771377040973,-500.0,0.00016986,2]
[405872985,1771377040981,-357.96,0.00016986,2]
[405872986,1771377040990,-500.0,0.00016986,2]
[405872987,1771377040999,-500.0,0.00016986,2]
[405872988,1771377041008,-500.0,0.00016986,2]
[405872989,1771377041018,-500.0,0.00016986,2]
[405872990,1771377041027,-3049.46,0.00016986,2]
[405872991,1771377041036,-500.0,0.00016986,2]
[405872992,1771377041045,-500.0,0.00016986,2]
[405872993,1771377041054,-282.39261582,0.00016986,2]
[405872994,1771377041063,-500.0,0.00016986,2]
[405872995,1771377041075,-568.26114732,0.00016986,2]
[405872996,1771377041085,-500.0,0.00016986,2]
[405872997,1771377041094,-824.05,0.00016986,2]
[405872998,1771377041103,-1576.31,0.00016986,2]
[405872999,1771377041112,-500.0,0.00016986,2]
[405873000,1771377041121,-500.0,0.00016986,2]
[405873001,1771377041130,-500.0,0.00016986,2]
[405873002,1771377041139,-500.0,0.00016986,2]
[405873003,1771377041149,-500.0,0.00016986,2]
[405873004,1771377041158,-500.0,0.00016986,2]
[405873005,1771377041167,-500.0,0.00016986,2]
[405873006,1771377041177,-6601.25,0.00016986,2]
[405873007,1771377041186,-25884.03927591,0.00017,2]
[405873009,1771377041195,-426.0,0.00017187,2]
[405873010,1771377041205,-449.432,0.00017187,2]
[405873011,1771377041215,-724.0,0.00017187,2]
[405873013,1771377041224,-190.539,0.00017187,2]
[405873015,1771377041232,-458.7463154,0.0001726,2]
[405873314,1771377043936,-428.46988561,0.00016438,2]
[405873567,1771377046511,-71.53011439,0.00016438,2]
[405873569,1771377046521,-500.0,0.00016712,2]
[405873571,1771377046530,-470.13655228,0.00016986,2]
[405874405,1771377774748,331.89360994,0.00012,2]
[405874406,1771377832378,15000.0,0.000153,120]
[405874415,1771377889507,5000.0,0.00012,2]
[405874418,1771377911747,5000.0,0.00012,2]
[405874419,1771377920104,4602.98133668,0.00012,2]
[405874424,1771378007126,-294.63115622,0.0001188,2]
[405874435,1771378145091,-5000.0,0.00011527,2]
[405874436,1771378145126,-150.0,0.00011585,2]
[405874437,1771378145147,-5000.0,0.00011643,2]
[405874438,1771378145168,-693.17156231,0.00011761,2]
[405874439,1771378145193,-306.92467846,0.00012245,2]
[405874440,1771378145218,-500.0,0.00012245,2]
[405874441,1771378145240,-500.0,0.00012245,2]
[405874442,1771378145261,-500.0,0.00012245,2]
[405874443,1771378145280,-180.0,0.00012245,2]
[405874444,1771378145300,-500.0,0.00012245,2]
[405874445,1771378145323,-500.0,0.00012245,2]
[405874446,1771378145343,-500.0,0.00012245,2]
[405874447,1771378145364,-581.75370693,0.00012245,2]
[405874448,1771378145384,-113.75877095,0.00012245,2]
[405874449,1771378153076,-2844.95825692,0.00012123,2]
[405874450,1771378158130,-1066.79436792,0.00012002,2]
[405874451,1771378158154,-2155.04174308,0.00012123,2]
[405874452,1771378158176,-219.77488212,0.00012245,2]
[405874453,1771378160110,-500.0,0.00013273,2]
[405874454,1771378160128,-115.14528292,0.00013273,2]
[405874455,1771378166134,-229.16317871,0.00013273,2]
[405874458,1771378212642,395.42440433,0.00012245,2]
[405874477,1771378237923,-5000.0,0.0001314,2]
[405874478,1771378237933,-248.38928679,0.00013272,2]
[405874479,1771378237943,-247.80572893,0.00013272,2]
[405874480,1771378237952,-500.0,0.00013272,2]
[405874481,1771378237961,-180.75845819,0.00013272,2]
[405874482,1771378237970,-155.69153837,0.00013273,2]
[405874483,1771378237980,-500.0,0.00013273,2]
[405874484,1771378237990,-500.0,0.00013273,2]
[405874485,1771378237999,-502.42602852,0.00013273,2]
[405874486,1771378238008,-500.0,0.00013273,2]
[405874487,1771378238017,-500.0,0.00013273,2]
[405874489,1771378238026,-429.38043416,0.00013273,2]
[405874491,1771378238035,-505.15474093,0.00013273,2]
[405874493,1771378238044,-500.85540107,0.00013273,2]
[405874494,1771378238054,-500.0,0.00013273,2]
[405874495,1771378238063,-502.04341244,0.00013273,2]
[405874496,1771378238072,-501.04204217,0.00013273,2]
[405874497,1771378238082,-177.0,0.00013585,2]
[405874498,1771378238091,-305.80615735,0.00013673,2]
[405874499,1771378238100,-227.73845203,0.00013698,2]
[405874500,1771378238110,-514.12636587,0.00013699,2]
[405874501,1771378238120,-500.0,0.00013699,2]
[405874502,1771378238129,-500.0,0.00013699,2]
[405874503,1771378238138,-500.0,0.00013699,2]
[405874504,1771378238148,-500.0,0.00013699,2]
[405874505,1771378238157,-500.0,0.00013699,2]
[405874506,1771378238166,-448.42218987,0.00013699,2]
[405874507,1771378238175,-500.0,0.00013699,2]
[405874508,1771378238184,-500.0,0.00013699,2]
[405874509,1771378238193,-500.0,0.00013699,2]
[405874510,1771378238204,-500.0,0.00013699,2]
[405874511,1771378238213,-500.0,0.00013699,2]
[405874512,1771378238223,-500.0,0.00013699,2]
[405874513,1771378238235,-501.9088931,0.00013699,2]
[405874514,1771378238246,-482.63914229,0.00013699,2]
[405874515,1771378238255,-500.85326001,0.00013699,2]
[405874516,1771378238265,-500.0,0.00013699,2]
[405874517,1771378238274,-501.56776894,0.00013699,2]
[405874518,1771378238283,-500.73866725,0.00013699,2]
[405874519,1771378238293,-486.71240384,0.00013699,2]
[405874520,1771378238303,-500.0,0.00013699,2]
[405874521,1771378238313,-500.0,0.00013699,2]
[405874522,1771378238322,-500.0,0.00013699,2]
[405874523,1771378238331,-647.02205108,0.00013699,2]
[405874524,1771378238340,-1479.9880729,0.00013804,2]
[405874525,1771378238349,-1000.0,0.00013821,2]
[405874526,1771378238358,-1000.0,0.00013821,2]
[405874527,1771378238368,-902.33647356,0.00013821,2]
[405874528,1771378238377,-1000.0,0.00013821,2]
[405874530,1771378238386,-640.27155339,0.00013821,2]
[405874532,1771378238397,-1000.0,0.00013821,2]
[405874534,1771378238406,-1000.0,0.00013821,2]
[405874536,1771378238415,-919.15523469,0.00014247,2]
[405874538,1771378238425,-500.0,0.00014247,2]
[405874540,1771378238434,-500.32522198,0.00014247,2]
[405874542,1771378238444,-785.09691353,0.00014247,2]
[405874544,1771378238452,-1000.0,0.00014247,2]
[405874546,1771378238462,-1000.0,0.00014247,2]
[405874548,1771378238471,-556.85575586,0.00014247,2]
[405874550,1771378238480,-1000.0,0.00014247,2]
[405874552,1771378238489,-513.11318355,0.00014247,2]
[405874554,1771378238499,-200.0,0.00014247,2]
[405874556,1771378238508,-1500.0,0.00014368,2]
[405874558,1771378238517,-1500.0,0.00014368,2]
[405874560,1771378238526,-544.74134542,0.00014368,2]
[405874562,1771378238535,-1500.0,0.00014368,2]
[405874564,1771378238545,-429.56434815,0.00014368,2]
[405874566,1771378238554,-435.1705014,0.00014795,2]
[405874568,1771378238563,-1500.0,0.00014795,2]
[405874570,1771378238573,-1511.49997576,0.00014795,2]
[405874572,1771378238583,-2000.0,0.00014916,2]
[405874574,1771378238592,-2000.0,0.00014916,2]
[405874576,1771378238601,-218.55561863,0.00014916,2]
[405874578,1771378238611,-160.35,0.00015,2]
[405874580,1771378238620,-2000.0,0.00015342,2]
[405874582,1771378238630,-2513.87166189,0.00015464,2]
[405874584,1771378238640,-2500.0,0.00015464,2]
[405874600,1771378238756,-204.0,0.00015585,2]
[405874603,1771378238795,-2323.19246991,0.0001589,2]
[405874605,1771378238809,-1636.14603206,0.00016012,2]
[405874607,1771378238819,-500.0,0.00016438,2]
[405874609,1771378238830,-500.0,0.00016438,2]
[405874611,1771378238839,-500.0,0.00016438,2]
[405874613,1771378238849,-500.0,0.00016438,2]
[405874615,1771378238859,-894.39,0.00016438,2]
[405874617,1771378238868,-500.0,0.00016438,2]
[405874619,1771378238877,-500.0,0.00016438,2]
[405874621,1771378238886,-500.0,0.00016438,2]
[405874623,1771378238898,-500.0,0.00016438,2]
[405874625,1771378238907,-500.0,0.00016438,2]
[405874627,1771378238916,-554.71,0.00016438,2]
[405874629,1771378238925,-500.0,0.00016438,2]
[405874631,1771378238934,-500.0,0.00016438,2]
[405874633,1771378238944,-500.0,0.00016438,2]
[405874635,1771378238953,-500.0,0.00016438,2]
[405874637,1771378238962,-500.0,0.00016438,2]
[405874639,1771378238971,-500.0,0.00016438,2]
[405874641,1771378238981,-500.0,0.00016438,2]
[405874643,1771378238990,-1358.98,0.00016438,2]
[405874645,1771378238999,-500.0,0.00016438,2]
[405874647,1771378239008,-500.0,0.00016438,2]
[405874649,1771378239017,-500.0,0.00016438,2]
[405874651,1771378239027,-500.0,0.00016438,2]
[405874653,1771378239036,-500.0,0.00016438,2]
[405874655,1771378239045,-500.0,0.00016438,2]
[405874657,1771378239054,-500.0,0.00016438,2]
[405874658,1771378239063,-500.0,0.00016438,2]
[405874660,1771378239072,-2668.28,0.00016438,2]
[405874663,1771378239082,-500.0,0.00016438,2]
[405874664,1771378239091,-500.0,0.00016438,2]
[405874666,1771378239102,-500.0,0.00016438,2]
[405874668,1771378239111,-1379.27,0.00016438,2]
[405874670,1771378239121,-500.0,0.00016438,2]
[405874673,1771378239130,-721.04,0.00016438,2]
[405874675,1771378239143,-500.0,0.00016438,2]
[405874677,1771378239153,-500.0,0.00016438,2]
[405874679,1771378239163,-500.0,0.00016438,2]
[405874681,1771378239172,-150.40583769,0.00016438,2]
[405874682,1771378239181,-500.0,0.00016438,2]
[405874684,1771378239191,-500.0,0.00016438,2]
[405874686,1771378239202,-5800.72,0.00016438,2]
[405874688,1771378239214,-12630.66339819,0.000166,3]
[405874690,1771378239224,-480.86853477,0.00016712,2]
[405874692,1771378239234,-500.0,0.00016712,2]
[405874694,1771378239245,-500.0,0.00016712,2]
[405874695,1771378239254,-500.0,0.00016712,2]
[405874697,1771378239264,-894.39,0.00016712,2]
[405874699,1771378239273,-500.0,0.00016712,2]
[405874701,1771378239283,-375.31846893,0.00016712,2]
[405875694,1771378250070,1508.93629981,0.000125,3]
[405876271,1771378300160,-2057.31306881,0.0001314,2]
[405876339,1771379189069,1276.8,0.00011,2]
[405876342,1771379235154,-275.9805683,0.00012496,2]
[405876343,1771379350110,-2987.88261091,0.00012371,2]
[405876344,1771379350280,-4724.0194317,0.00012496,2]
[405876345,1771379350304,-1313.426293,0.00012628,2]
[405876346,1771379350326,-150.0,0.0001275,2]
[405876347,1771379350345,-249.90471966,0.00012879,2]
[405876348,1771379361145,-3947.76330175,0.0001275,2]
[405876349,1771379370100,-420.77259017,0.0001275,2]
[405876350,1771379370130,-631.46410808,0.0001275,2]
[405876351,1771379370153,-352.09528034,0.00012879,2]
[405876379,1771379431899,-973.0,0.00013127,2]
[405876394,1771379432037,-30.66450759,0.00013127,2]
[405876397,1771379432049,-2765.26644445,0.00013127,2]
[405876448,1771379435196,247.2398083,0.00012716,2]
[405876463,1771379437910,-729.16552681,0.00013127,2]
[405876465,1771379437921,-501.90352115,0.00013127,2]
[405876468,1771379437933,-150.0,0.00013194,2]
[405876469,1771379437942,-300.0,0.0001326,2]
[405876472,1771379437952,-300.0,0.00013261,2]
[405876474,1771379437961,-300.0,0.00013272,2]
[405876476,1771379437970,-300.0,0.00013272,2]
[405876478,1771379437981,-1200.0,0.00013272,2]
[405876480,1771379437995,-500.0,0.00013273,2]
[405876482,1771379438005,-500.0,0.00013273,2]
[405876484,1771379438014,-502.27869912,0.00013273,2]
[405876486,1771379438023,-500.0,0.00013273,2]
[405876488,1771379438032,-500.0,0.00013273,2]